[Event "Turkish Club Cup 2019"]
[Site "Konya"]
[Date "2019.07.17"]
[Round "2"]
[White "Bugdayci, Yuksel"]
[Black "Alabas, Anil"]
[Result "1/2-1/2"]
[ECO "D35"]
[WhiteElo "1325"]
[BlackElo "1430"]
[Annotator "NA"]
[PlyCount "78"]
[EventDate "2019.07.16"]
[EventType "team-tourn"]
[EventCountry "TUR"]
[SourceTitle "playchess.com"]
[Source "ChessBase"]
[SourceQuality "1"]
[TimeControl "5400+30"]

1. e3 {[%emt 0:00:30]} e6 {[%emt 0:00:30]} 2. c4 {[%emt 0:00:00]} d5 {[%emt 0:00:00]} 3. cxd5 {[%emt 0:03:00]} exd5 {[%emt 0:00:00]} 4. d4 {[%emt 0:00:30]} Bd6 {[%emt 0:00:30]} 5. Nc3 {[%emt 0:00:30]} Nf6 {[%emt 0:00:30]} 6. Nf3 {[%emt 0:01:30]} c6 {[%emt 0:00:30]} 7. Bd3 {[%emt 0:04:30]} Bg4 {[%emt 0:01:30]} 8. h3 {[%emt 0:11:30]} Bh5 {[%emt 0:00:30]} 9. Be2 {[%emt 0:00:00]} O-O {[%emt 0:00:30]} 10. O-O {[%emt 0:00:00]} Nbd7 {[%emt 0:00:00]} 11. Nd2 {[%emt 0:01:30]} Bg6 {[%emt 0:06:00]} 12. f4 {[%emt 0:02:30]} h6 {[%emt 0:05:30]} 13. Nf3 {[%emt 0:09:30]} Ne4 {[%emt 0:02:30]} 14. Nxe4 {[%emt 0:02:30]} Bxe4 {[%emt 0:03:30]} 15. Bd3 {[%emt 0:01:30]} Nf6 {[%emt 0:06:30]} 16. Qc2 {[%emt 0:10:30]} Bxd3 {[%emt 0:03:30]} 17. Qxd3 {[%emt 0:00:30]} Ne4 {[%emt 0:00:00]} 18. Nd2 {[%emt 0:00:00]} f5 {[%emt 0:05:00]} 19. Nxe4 {[%emt 0:00:00]} fxe4 {[%emt 0:00:00]} 20. Qe2 {[%emt 0:00:30]} Qb6 {[%emt 0:05:00]} 21. b3 {[%emt 0:12:30]} c5 {[%emt 0:06:30]} 22. Bb2 {[%emt 0:03:30]} cxd4 {[%emt 0:00:30]} 23. Bxd4 {[%emt 0:00:30]} Bc5 {[%emt 0:00:30]} 24. Bxc5 {[%emt 0:00:30]} Qxc5 {[%emt 0:00:00]} 25. Rac1 {[%emt 0:00:00]} Qb6 {[%emt 0:01:00]} 26. Rfd1 {[%emt 0:00:00]} Rad8 {[%emt 0:00:30]} 27. Kh1 {[%emt 0:05:30]} Rf7 {[%emt 0:02:30]} 28. g3 {[%emt 0:02:30]} Rfd7 {[%emt 0:00:30]} 29. Rd4 {[%emt 0:02:30]} Qe6 {[%emt 0:07:30]} 30. Kh2 {[%emt 0:02:30]} a6 {[%emt 0:01:30]} 31. Rc3 {[%emt 0:04:57]} Qb6 {[%emt 0:01:30]} 32. Kg2 {[%emt 0:01:22]} Kh7 {[%emt 0:03:30]} 33. Qc2 {[%emt 0:01:01]} Rd6 {[%emt 0:02:30]} 34. Qd2 {[%emt 0:04:59]} R8d7 {[%emt 0:02:30]} 35. Kf2 {[%emt 0:02:37]} Qa5 {[%emt 0:01:30]} 36. Rc2 {[%emt 0:00:58]} Qxd2+ {[%emt 0:02:30]} 37. Rcxd2 {[%emt 0:00:02]} Kg6 {[%emt 0:00:00]} 38. g4 {[%emt 0:00:56]} Kf6 {[%emt 0:02:00]} 39. Ke2 {[%emt 0:00:30]} Ke6 {[%emt 0:00:30]} 1/2-1/2

[Event "Turkish Club Cup 2019"]
[Site "Konya"]
[Date "2019.07.17"]
[Round "2"]
[White "Sen, Nehir"]
[Black "Yignak, Havva Deniz"]
[Result "1/2-1/2"]
[ECO "D00"]
[WhiteElo "1307"]
[BlackElo "1219"]
[Annotator "NA"]
[PlyCount "95"]
[EventDate "2019.07.16"]
[EventType "team-tourn"]
[EventCountry "TUR"]
[SourceTitle "playchess.com"]
[Source "ChessBase"]
[SourceQuality "1"]
[TimeControl "5400+30"]

1. d4 {[%emt 0:00:30]} d5 {[%emt 0:00:30]} 2. Bf4 {[%emt 0:00:00]} e6 {[%emt 0:00:00]} 3. e3 {[%emt 0:00:00]} a6 {[%emt 0:01:00]} 4. a4 {[%emt 0:01:30]} Nf6 {[%emt 0:04:30]} 5. c3 {[%emt 0:00:30]} c5 {[%emt 0:02:30]} 6. Nd2 {[%emt 0:01:30]} Nbd7 {[%emt 0:04:30]} 7. Ngf3 {[%emt 0:02:30]} Be7 {[%emt 0:04:30]} 8. Bd3 {[%emt 0:03:30]} O-O {[%emt 0:01:30]} 9. h3 {[%emt 0:01:30]} c4 {[%emt 0:09:30]} 10. Be2 {[%emt 0:03:30]} Qb6 {[%emt 0:03:30]} 11. Qc2 {[%emt 0:02:30]} Bd6 {[%emt 0:04:30]} 12. Bxd6 {[%emt 0:03:30]} Qxd6 {[%emt 0:00:00]} 13. O-O {[%emt 0:00:30]} Rb8 {[%emt 0:01:00]} 14. e4 {[%emt 0:02:30]} Qe7 {[%emt 0:05:30]} 15. Rfe1 {[%emt 0:09:30]} b5 {[%emt 0:07:30]} 16. axb5 {[%emt 0:00:30]} axb5 {[%emt 0:00:30]} 17. exd5 {[%emt 0:01:30]} Nxd5 {[%emt 0:00:30]} 18. Bf1 {[%emt 0:04:30]} Bb7 {[%emt 0:02:30]} 19. Ne4 {[%emt 0:07:30]} Rfc8 {[%emt 0:05:30]} 20. Ng3 {[%emt 0:10:30]} g6 {[%emt 0:11:30]} 21. Qd2 {[%emt 0:07:30]} b4 {[%emt 0:04:30]} 22. Ne2 {[%emt 0:04:30]} bxc3 {[%emt 0:02:30]} 23. bxc3 {[%emt 0:00:30]} N7f6 {[%emt 0:01:30]} 24. Nf4 {[%emt 0:00:30]} Qd6 {[%emt 0:02:30]} 25. Ne5 {[%emt 0:01:30]} Ba6 {[%emt 0:05:52]} 26. Reb1 {[%emt 0:01:30]} Rxb1 {[%emt 0:02:39]} 27. Rxb1 {[%emt 0:00:30]} Ne4 {[%emt 0:00:00]} 28. Qc1 {[%emt 0:02:30]} Ndxc3 {[%emt 0:00:08]} 29. Rb2 {[%emt 0:00:30]} Qxd4 {[%emt 0:01:26]} 30. Nf3 {[%emt 0:00:30]} Qf6 {[%emt 0:01:36]} 31. Ne2 {[%emt 0:02:30]} Nd5 {[%emt 0:03:16]} 32. Ng3 {[%emt 0:00:30]} Nxg3 {[%emt 0:00:30]} 33. fxg3 {[%emt 0:00:30]} Rc6 {[%emt 0:00:30]} 34. Ra2 {[%emt 0:06:58]} Nb4 {[%emt 0:05:08]} 35. Rb2 {[%emt 0:01:42]} Rb6 {[%emt 0:01:17]} 36. Rf2 {[%emt 0:02:20]} Nd3 {[%emt 0:00:46]} 37. Bxd3 {[%emt 0:00:37]} cxd3 {[%emt 0:00:01]} 38. Qe3 {[%emt 0:01:02]} Rb1+ {[%emt 0:01:04]} 39. Kh2 {[%emt 0:00:14]} Qa1 {[%emt 0:00:32]} 40. g4 {[%emt 0:00:38]} Rb2 {[%emt 0:01:03]} 41. Qd4 {[%emt 0:02:10]} Rb1 {[%emt 0:01:28]} 42. Qf4 {[%emt 0:03:36]} Rf1 {[%emt 0:00:53]} 43. Rxf1 {[%emt 0:00:42]} Qxf1 {[%emt 0:00:02]} 44. Qb8+ {[%emt 0:00:11]} Kg7 {[%emt 0:00:12]} 45. Qe5+ {[%emt 0:00:00]} Kg8 {[%emt 0:01:18]} 46. Qb8+ {[%emt 0:00:07]} Kg7 {[%emt 0:00:30]} 47. Qe5+ {[%emt 0:00:00]} Kg8 {[%emt 0:01:08]} 48. Qb8+ {[%emt 0:00:00]} 1/2-1/2

[Event "Turkish Club Cup 2019"]
[Site "Konya"]
[Date "2019.07.17"]
[Round "2"]
[White "Cingoz, Isil"]
[Black "Haktanirlar, Zeren"]
[Result "1-0"]
[ECO "B12"]
[WhiteElo "1123"]
[BlackElo "1294"]
[Annotator "NA"]
[PlyCount "105"]
[EventDate "2019.07.16"]
[EventType "team-tourn"]
[EventCountry "TUR"]
[SourceTitle "playchess.com"]
[Source "ChessBase"]
[SourceQuality "1"]
[TimeControl "5400+30"]

1. e4 {[%emt 0:00:30]} c6 {[%emt 0:00:30]} 2. d4 {[%emt 0:00:00]} d5 {[%emt 0:00:30]} 3. e5 {[%emt 0:00:00]} h5 {[%emt 0:00:00]} 4. h3 {[%emt 0:00:30]} Bf5 {[%emt 0:00:00]} 5. c4 {[%emt 0:01:30]} e6 {[%emt 0:02:30]} 6. Nc3 {[%emt 0:01:30]} Ne7 {[%emt 0:01:30]} 7. b3 {[%emt 0:02:30]} Bg6 {[%emt 0:06:30]} 8. Ba3 {[%emt 0:02:30]} Qa5 {[%emt 0:02:30]} 9. Qc1 {[%emt 0:01:30]} Na6 {[%emt 0:09:30]} 10. cxd5 {[%emt 0:14:30]} Nxd5 {[%emt 0:02:30]} 11. Bxf8 {[%emt 0:04:30]} Nxc3 {[%emt 0:25:30]} 12. Bxa6 {[%emt 0:03:30]} Nd5+ {[%emt 0:07:30]} 13. Qd2 {[%emt 0:02:30]} Qxa6 {[%emt 0:00:30]} 14. Bxg7 {[%emt 0:01:30]} Rh7 {[%emt 0:02:30]} 15. Bf6 {[%emt 0:00:30]} Qb6 {[%emt 0:00:30]} 16. Nf3 {[%emt 0:01:30]} Nb4 {[%emt 0:01:30]} 17. O-O {[%emt 0:00:30]} Nd5 {[%emt 0:02:30]} 18. Ng5 {[%emt 0:03:30]} Nxf6 {[%emt 0:00:30]} 19. exf6 {[%emt 0:00:30]} Rh8 {[%emt 0:00:30]} 20. Rfe1 {[%emt 0:00:30]} O-O-O {[%emt 0:00:30]} 21. Nf3 {[%emt 0:01:30]} Kb8 {[%emt 0:00:30]} 22. Rad1 {[%emt 0:02:30]} Rd6 {[%emt 0:04:30]} 23. Qf4 {[%emt 0:03:30]} Qc7 {[%emt 0:01:30]} 24. Ne5 {[%emt 0:01:30]} Rg8 {[%emt 0:01:30]} 25. b4 {[%emt 0:10:30]} Rgd8 {[%emt 0:06:38]} 26. Nxg6 {[%emt 0:01:30]} fxg6 {[%emt 0:00:22]} 27. Re4 {[%emt 0:01:30]} Qf7 {[%emt 0:01:10]} 28. g4 {[%emt 0:03:30]} hxg4 {[%emt 0:01:11]} 29. hxg4 {[%emt 0:00:30]} e5 {[%emt 0:01:41]} 30. Rxe5 {[%emt 0:04:30]} Qxf6 {[%emt 0:00:24]} 31. Qe3 {[%emt 0:01:30]} Kc8 {[%emt 0:02:14]} 32. g5 {[%emt 0:01:30]} Qf7 {[%emt 0:00:51]} 33. a3 {[%emt 0:00:30]} Qd7 {[%emt 0:00:53]} 34. Re4 {[%emt 0:01:30]} Rd5 {[%emt 0:00:32]} 35. f3 {[%emt 0:00:30]} Qf5 {[%emt 0:00:57]} 36. Rg4 {[%emt 0:03:30]} Rf8 {[%emt 0:03:06]} 37. Kg2 {[%emt 0:00:30]} Rfd8 {[%emt 0:01:40]} 38. Rh1 {[%emt 0:01:30]} Qd7 {[%emt 0:02:25]} 39. Rhh4 {[%emt 0:00:30]} a6 {[%emt 0:01:20]} 40. Re4 {[%emt 0:01:30]} Qf5 {[%emt 0:01:36]} 41. Rhg4 {[%emt 0:04:54]} R5d7 {[%emt 0:01:02]} 42. Ref4 {[%emt 0:03:12]} Qc2+ {[%emt 0:00:40]} 43. Kg3 {[%emt 0:00:42]} Rh8 {[%emt 0:01:10]} 44. Rh4 {[%emt 0:00:18]} Rdh7 {[%emt 0:03:57]} 45. Qe6+ {[%emt 0:00:56]} Kb8 {[%emt 0:01:16]} 46. Rxh7 {[%emt 0:02:23]} Rxh7 {[%emt 0:00:29]} 47. Qg8+ {[%emt 0:01:38]} Ka7 {[%emt 0:00:30]} 48. Qxh7 {[%emt 0:00:00]} Qc1 {[%emt 0:00:06]} 49. Qh2 {[%emt 0:02:02]} Qxa3 {[%emt 0:00:15]} 50. d5 {[%emt 0:00:16]} c5 {[%emt 0:01:16]} 51. Qf2 {[%emt 0:00:25]} b6 {[%emt 0:00:43]} 52. d6 {[%emt 0:00:18]} Qd3 {[%emt 0:00:39]} 53. bxc5 {[%emt 0:00:13]} 1-0

[Event "Turkish Club Cup 2019"]
[Site "Konya"]
[Date "2019.07.17"]
[Round "3"]
[White "Can, Isik"]
[Black "Metin, Enis"]
[Result "1/2-1/2"]
[ECO "B78"]
[WhiteElo "2374"]
[BlackElo "1538"]
[Annotator "NA"]
[PlyCount "54"]
[EventDate "2019.07.16"]
[EventType "team-tourn"]
[EventCountry "TUR"]
[SourceTitle "playchess.com"]
[Source "ChessBase"]
[SourceQuality "1"]
[TimeControl "5400+30"]

1. e4 {[%emt 0:00:30]} c5 {[%emt 0:00:30]} 2. Nf3 {[%emt 0:00:00]} d6 {[%emt 0:00:30]} 3. d4 {[%emt 0:00:00]} cxd4 {[%emt 0:00:00]} 4. Nxd4 {[%emt 0:00:00]} Nf6 {[%emt 0:00:00]} 5. Nc3 {[%emt 0:00:00]} g6 {[%emt 0:00:30]} 6. Be3 {[%emt 0:00:30]} Bg7 {[%emt 0:00:00]} 7. f3 {[%emt 0:00:30]} Nc6 {[%emt 0:00:00]} 8. Bc4 {[%emt 0:00:30]} Bd7 {[%emt 0:00:30]} 9. Bb3 {[%emt 0:00:30]} O-O {[%emt 0:00:30]} 10. Qd2 {[%emt 0:00:30]} Rc8 {[%emt 0:00:30]} 11. O-O-O {[%emt 0:05:30]} Ne5 {[%emt 0:03:30]} 12. Bh6 {[%emt 0:03:30]} Nc4 {[%emt 0:07:30]} 13. Bxc4 {[%emt 0:05:30]} Rxc4 {[%emt 0:00:00]} 14. Bxg7 {[%emt 0:00:30]} Kxg7 {[%emt 0:00:00]} 15. g4 {[%emt 0:06:30]} Qa5 {[%emt 0:00:30]} 16. h4 {[%emt 0:03:30]} Rfc8 {[%emt 0:01:30]} 17. Nb3 {[%emt 0:02:30]} Qa6 {[%emt 0:00:30]} 18. Kb1 {[%emt 0:04:30]} Kg8 {[%emt 0:23:30]} 19. h5 {[%emt 0:03:30]} Rxc3 {[%emt 0:00:30]} 20. bxc3 {[%emt 0:03:30]} Bxg4 {[%emt 0:00:00]} 21. fxg4 {[%emt 0:09:30]} Nxe4 {[%emt 0:01:00]} 22. Qd3 {[%emt 0:00:30]} Nxc3+ {[%emt 0:00:30]} 23. Kc1 {[%emt 0:00:30]} Qa3+ {[%emt 0:06:30]} 24. Kd2 {[%emt 0:00:30]} Qb4 {[%emt 0:19:30]} 25. Kc1 {[%emt 0:00:30]} Qa3+ {[%emt 0:16:59]} 26. Kd2 {[%emt 0:00:30]} Qb4 {[%emt 0:05:01]} 27. Kc1 {[%emt 0:00:30]} Qa3+ {[%emt 0:11:05]} 1/2-1/2

[Event "Turkish Club Cup 2019"]
[Site "Konya"]
[Date "2019.07.17"]
[Round "3"]
[White "Kinsiz, Onur"]
[Black "Dogan, Ali Ekber"]
[Result "0-1"]
[ECO "C03"]
[WhiteElo "2210"]
[BlackElo "2200"]
[Annotator "NA"]
[PlyCount "83"]
[EventDate "2019.07.16"]
[EventType "team-tourn"]
[EventCountry "TUR"]
[SourceTitle "playchess.com"]
[Source "ChessBase"]
[SourceQuality "1"]
[TimeControl "5400+30"]

1. e4 e6 2. d4 d5 3. Nd2 Be7 4. Ngf3 Nf6 5. Bd3 c5 6. exd5 exd5 7. dxc5 Bxc5 8. O-O O-O 9. Nb3 Bb6 10. h3 Ne4 11. Nfd4 Nc6 12. Nxc6 bxc6 13. Bxe4 dxe4 14. Qxd8 Rxd8 15. Be3 Ba6 16. Rfd1 Rd5 17. Rxd5 cxd5 18. Bxb6 axb6 19. a4 {[%emt 1:21:49]} Bb7 {[%emt 0:28:30]} 20. Nd4 {[%emt 0:00:30]} Kf8 {[%emt 0:00:30]} 21. Ra3 {[%emt 0:00:30]} Ke7 {[%emt 0:03:30]} 22. Kf1 {[%emt 0:03:20]} Kd7 {[%emt 0:01:30]} 23. c3 {[%emt 0:08:21]} Ba6+ {[%emt 0:09:30]} 24. Ke1 {[%emt 0:00:40]} Bc4 {[%emt 0:00:30]} 25. g3 {[%emt 0:00:40]} g6 {[%emt 0:00:30]} 26. Kd2 {[%emt 0:00:34]} Kd6 {[%emt 0:01:30]} 27. b4 {[%emt 0:05:14]} f5 {[%emt 0:02:30]} 28. h4 {[%emt 0:01:05]} Ke5 {[%emt 0:01:30]} 29. Ke3 {[%emt 0:00:29]} h6 {[%emt 0:00:30]} 30. a5 {[%emt 0:00:22]} bxa5 {[%emt 0:02:30]} 31. Rxa5 {[%emt 0:00:20]} Rxa5 {[%emt 0:06:30]} 32. bxa5 {[%emt 0:00:02]} g5 {[%emt 0:00:30]} 33. f4+ {[%emt 0:01:54]} exf3 {[%emt 0:02:30]} 34. Nxf3+ {[%emt 0:00:30]} Kf6 {[%emt 0:00:30]} 35. Kd4 {[%emt 0:00:34]} f4 {[%emt 0:00:00]} 36. hxg5+ {[%emt 0:00:57]} hxg5 {[%emt 0:00:00]} 37. gxf4 {[%emt 0:00:00]} gxf4 {[%emt 0:00:30]} 38. Ne5 {[%emt 0:00:00]} Be2 {[%emt 0:18:30]} 39. Nd3 {[%emt 0:01:07]} f3 {[%emt 0:02:30]} 40. Ke3 {[%emt 0:00:01]} Bf1 {[%emt 0:05:36]} 41. a6 {[%emt 0:00:58]} d4+ {[%emt 0:00:24]} 42. cxd4 {[%emt 0:01:03]} 0-1

[Event "Turkish Club Cup 2019"]
[Site "Konya"]
[Date "2019.07.17"]
[Round "3"]
[White "Ersahin, Bulent"]
[Black "Aslan, Onat Ugur"]
[Result "1-0"]
[ECO "D02"]
[WhiteElo "2179"]
[BlackElo "1747"]
[Annotator "NA"]
[PlyCount "83"]
[EventDate "2019.07.16"]
[EventType "team-tourn"]
[EventCountry "TUR"]
[SourceTitle "playchess.com"]
[Source "ChessBase"]
[SourceQuality "1"]
[TimeControl "5400+30"]

1. Nf3 {[%emt 0:00:30]} Nf6 {[%emt 0:00:30]} 2. g3 {[%emt 0:00:00]} d5 {[%emt 0:04:30]} 3. Bg2 {[%emt 0:00:00]} c5 {[%emt 0:00:00]} 4. O-O {[%emt 0:01:30]} Nc6 {[%emt 0:00:00]} 5. d4 {[%emt 0:00:00]} cxd4 {[%emt 0:02:30]} 6. Nxd4 {[%emt 0:00:00]} e5 {[%emt 0:00:30]} 7. Nxc6 {[%emt 0:00:30]} bxc6 {[%emt 0:00:30]} 8. c4 {[%emt 0:00:30]} Bb7 {[%emt 0:05:30]} 9. cxd5 {[%emt 0:04:30]} Nxd5 {[%emt 0:02:30]} 10. Qa4 {[%emt 0:03:30]} Be7 {[%emt 0:03:30]} 11. Rd1 {[%emt 0:01:30]} O-O {[%emt 0:03:30]} 12. Bd2 {[%emt 0:05:30]} Nb6 {[%emt 0:08:30]} 13. Qc2 {[%emt 0:03:30]} Qc8 {[%emt 0:04:30]} 14. Bc3 {[%emt 0:00:30]} Qe6 {[%emt 0:06:30]} 15. Nd2 {[%emt 0:09:30]} Nd5 {[%emt 0:10:30]} 16. Ba5 {[%emt 0:03:30]} f5 {[%emt 0:08:30]} 17. e4 {[%emt 0:07:30]} fxe4 {[%emt 0:07:30]} 18. Nxe4 {[%emt 0:00:30]} Qf5 {[%emt 0:03:30]} 19. Rac1 {[%emt 0:01:30]} Rf7 {[%emt 0:05:30]} 20. Nc5 {[%emt 0:12:30]} Bxc5 {[%emt 0:02:52]} 21. Qxf5 {[%emt 0:00:30]} Rxf5 {[%emt 0:00:18]} 22. Rxc5 {[%emt 0:00:30]} Raf8 {[%emt 0:00:26]} 23. Rd2 {[%emt 0:02:30]} g5 {[%emt 0:03:36]} 24. Bh3 {[%emt 0:07:30]} R5f6 {[%emt 0:00:28]} 25. Re2 {[%emt 0:00:30]} e4 {[%emt 0:02:49]} 26. Be1 {[%emt 0:04:30]} Re8 {[%emt 0:05:11]} 27. Ra5 {[%emt 0:06:30]} Re7 {[%emt 0:02:22]} 28. Rxa7 {[%emt 0:02:30]} h5 {[%emt 0:03:59]} 29. Bd2 {[%emt 0:01:30]} e3 {[%emt 0:01:50]} 30. fxe3 {[%emt 0:01:30]} Bc8 {[%emt 0:01:51]} 31. Ra8 {[%emt 0:00:30]} Nb6 {[%emt 0:00:23]} 32. Rxc8+ {[%emt 0:02:22]} Nxc8 {[%emt 0:00:30]} 33. Bxc8 {[%emt 0:00:04]} Ref7 {[%emt 0:00:00]} 34. e4 {[%emt 0:01:17]} Rc7 {[%emt 0:01:23]} 35. Ba6 {[%emt 0:00:16]} g4 {[%emt 0:00:30]} 36. Bc4+ {[%emt 0:00:18]} Kh7 {[%emt 0:00:18]} 37. e5 {[%emt 0:00:18]} Rf8 {[%emt 0:00:53]} 38. e6 {[%emt 0:00:15]} Re8 {[%emt 0:00:00]} 39. Bc3 {[%emt 0:01:48]} Kg6 {[%emt 0:00:23]} 40. Rf2 {[%emt 0:01:01]} c5 {[%emt 0:00:50]} 41. Bd3+ {[%emt 0:00:42]} Kh6 {[%emt 0:00:31]} 42. Rf6+ {[%emt 0:00:19]} 1-0

[Event "Turkish Club Cup 2019"]
[Site "Konya"]
[Date "2019.07.17"]
[Round "3"]
[White "Guven, Oguz Kagan"]
[Black "Caputcuoglu, Zeki Berke"]
[Result "1/2-1/2"]
[ECO "A15"]
[WhiteElo "2142"]
[BlackElo "2010"]
[Annotator "NA"]
[PlyCount "93"]
[EventDate "2019.07.16"]
[EventType "team-tourn"]
[EventCountry "TUR"]
[SourceTitle "playchess.com"]
[Source "ChessBase"]
[SourceQuality "1"]
[TimeControl "5400+30"]

1. Nf3 Nf6 2. c4 g6 3. b3 Bg7 4. Bb2 O-O 5. g3 d6 6. Bg2 e5 7. d3 Re8 8. O-O Nbd7 9. Nbd2 c6 10. Qc2 d5 11. cxd5 cxd5 12. Rac1 b6 13. b4 Qe7 14. Qb3 Qd6 15. d4 e4 16. Ne5 Bb7 17. b5 Qe6 18. Rc7 Rab8 19. Nc6 Bxc6 20. bxc6 {[%emt 0:54:00]} Nf8 {[%emt 1:05:00]} 21. Rxa7 {[%emt 0:00:30]} Qxc6 {[%emt 0:00:30]} 22. Rc1 {[%emt 0:00:30]} Qe6 {[%emt 0:00:30]} 23. Rcc7 {[%emt 0:00:30]} N8d7 {[%emt 0:00:30]} 24. e3 {[%emt 0:00:30]} Rec8 {[%emt 0:00:30]} 25. Qc3 {[%emt 0:03:30]} Rxc7 {[%emt 0:01:30]} 26. Qxc7 {[%emt 0:00:30]} Bf8 {[%emt 0:03:30]} 27. Ba3 {[%emt 0:00:00]} Bxa3 {[%emt 0:05:30]} 28. Rxa3 {[%emt 0:00:00]} h5 {[%emt 0:00:30]} 29. Rc3 {[%emt 0:00:30]} Ra8 {[%emt 0:00:30]} 30. a3 {[%emt 0:00:30]} h4 {[%emt 0:00:30]} 31. gxh4 {[%emt 0:00:30]} Qg4 {[%emt 0:06:30]} 32. Qg3 {[%emt 0:14:30]} Qd1+ {[%emt 0:00:00]} 33. Nf1 {[%emt 0:00:00]} Qe1 {[%emt 0:04:24]} 34. Rc7 {[%emt 0:04:00]} Rxa3 {[%emt 0:03:05]} 35. Qf4 {[%emt 0:08:12]} Ra2 {[%emt 0:08:36]} 36. h5 {[%emt 0:08:51]} Nxh5 {[%emt 0:00:43]} 37. Qh4 {[%emt 0:00:01]} Ndf6 {[%emt 0:00:03]} 38. Bh3 {[%emt 0:02:47]} b5 {[%emt 0:02:29]} 39. Rc8+ {[%emt 0:00:01]} Kg7 {[%emt 0:00:25]} 40. Rc7 {[%emt 0:00:04]} Kg8 {[%emt 0:00:19]} 41. Rc8+ {[%emt 0:00:30]} Kg7 {[%emt 0:00:30]} 42. Rc7 {[%emt 0:00:00]} Ra1 {[%emt 0:00:52]} 43. Qg5 {[%emt 0:00:00]} b4 {[%emt 0:01:21]} 44. Rb7 {[%emt 0:00:10]} Rb1 {[%emt 0:00:39]} 45. Qg2 {[%emt 0:00:55]} Kg8 {[%emt 0:00:56]} 46. Rb8+ {[%emt 0:00:43]} Kg7 {[%emt 0:00:04]} 47. Rb7 {[%emt 0:00:00]} 1/2-1/2

[Event "Turkish Club Cup 2019"]
[Site "Konya"]
[Date "2019.07.17"]
[Round "3"]
[White "Gulden, Egemen"]
[Black "Yilmaz, Yigithan Furkan"]
[Result "1-0"]
[ECO "C06"]
[WhiteElo "2135"]
[BlackElo "1359"]
[Annotator "NA"]
[PlyCount "117"]
[EventDate "2019.07.16"]
[EventType "team-tourn"]
[EventCountry "TUR"]
[SourceTitle "playchess.com"]
[Source "ChessBase"]
[SourceQuality "1"]
[TimeControl "5400+30"]

1. e4 e6 2. d4 d5 3. Nd2 Nf6 4. e5 Nfd7 5. Bd3 c5 6. c3 Nc6 7. Ne2 cxd4 8. cxd4 Qb6 9. Nf3 Be7 10. O-O O-O 11. a3 Re8 12. b4 a6 13. Be3 f6 14. exf6 Bxf6 15. Ne5 {[%emt 0:48:30]} Qc7 {[%emt 1:05:30]} 16. f4 {[%emt 0:00:30]} Nf8 {[%emt 0:03:30]} 17. Rc1 {[%emt 0:04:30]} Bd7 {[%emt 0:03:30]} 18. Rf3 {[%emt 0:01:30]} Qd6 {[%emt 0:06:30]} 19. Rh3 {[%emt 0:03:30]} Ne7 {[%emt 0:04:55]} 20. g4 {[%emt 0:09:30]} g6 {[%emt 0:04:00]} 21. Rf3 {[%emt 0:10:30]} Bg7 {[%emt 0:03:13]} 22. h4 {[%emt 0:01:30]} Rac8 {[%emt 0:03:09]} 23. Rc5 {[%emt 0:01:38]} b6 {[%emt 0:01:13]} 24. Rxc8 {[%emt 0:02:40]} Rxc8 {[%emt 0:01:00]} 25. Qb3 {[%emt 0:04:41]} b5 {[%emt 0:00:46]} 26. Bb1 {[%emt 0:02:55]} Rc7 {[%emt 0:01:37]} 27. Nd3 {[%emt 0:00:36]} Bc8 {[%emt 0:01:03]} 28. Nc5 {[%emt 0:01:21]} Nc6 {[%emt 0:00:24]} 29. Bd3 {[%emt 0:01:40]} Qe7 {[%emt 0:00:49]} 30. Rh3 {[%emt 0:00:43]} Qf7 {[%emt 0:01:07]} 31. Rg3 {[%emt 0:01:22]} Qe7 {[%emt 0:00:09]} 32. g5 {[%emt 0:00:33]} Qd6 {[%emt 0:00:47]} 33. Rf3 {[%emt 0:00:47]} Ne7 {[%emt 0:00:13]} 34. Nc1 {[%emt 0:00:57]} Nc6 {[%emt 0:00:33]} 35. Qb2 {[%emt 0:01:26]} Rf7 {[%emt 0:01:01]} 36. Qf2 {[%emt 0:00:32]} Ne7 {[%emt 0:00:21]} 37. Bc2 {[%emt 0:01:48]} Nc6 {[%emt 0:00:40]} 38. N1d3 {[%emt 0:00:10]} Re7 {[%emt 0:00:06]} 39. Ne5 {[%emt 0:00:09]} Nxe5 {[%emt 0:00:56]} 40. dxe5 {[%emt 0:01:08]} Qc6 {[%emt 0:00:17]} 41. Nb3 {[%emt 0:00:35]} Qc7 {[%emt 0:01:23]} 42. Bc5 {[%emt 0:00:26]} Rf7 {[%emt 0:00:10]} 43. Nd4 {[%emt 0:01:03]} Qb7 {[%emt 0:00:46]} 44. Qh2 {[%emt 0:01:03]} h5 {[%emt 0:00:34]} 45. Bxf8 {[%emt 0:01:20]} Rxf8 {[%emt 0:00:48]} 46. Bxg6 {[%emt 0:00:05]} Qb6 {[%emt 0:00:20]} 47. Qf2 {[%emt 0:00:07]} Qc7 {[%emt 0:01:11]} 48. Bxh5 {[%emt 0:01:00]} Bxe5 {[%emt 0:00:55]} 49. fxe5 {[%emt 0:00:14]} Rxf3 {[%emt 0:00:00]} 50. Qxf3 {[%emt 0:00:41]} Qc1+ {[%emt 0:00:19]} 51. Kg2 {[%emt 0:00:17]} Qd2+ {[%emt 0:00:00]} 52. Ne2 {[%emt 0:00:10]} Qc2 {[%emt 0:01:10]} 53. Qf7+ {[%emt 0:00:30]} Kh8 {[%emt 0:00:00]} 54. Qf8+ {[%emt 0:00:34]} Kh7 {[%emt 0:00:14]} 55. g6+ {[%emt 0:00:30]} Qxg6+ {[%emt 0:00:00]} 56. Bxg6+ {[%emt 0:00:00]} Kxg6 {[%emt 0:00:15]} 57. Nf4+ {[%emt 0:00:08]} Kh7 {[%emt 0:00:00]} 58. Qf7+ {[%emt 0:00:00]} Kh6 {[%emt 0:00:06]} 59. Qg6# {[%emt 0:00:00]} 1-0

[Event "Turkish Club Cup 2019"]
[Site "Konya"]
[Date "2019.07.17"]
[Round "3"]
[White "Ozdover, Mustafa Berkay"]
[Black "Esen, Nejdet"]
[Result "1/2-1/2"]
[ECO "E81"]
[WhiteElo "2130"]
[BlackElo "1918"]
[Annotator "NA"]
[PlyCount "60"]
[EventDate "2019.07.16"]
[EventType "team-tourn"]
[EventCountry "TUR"]
[SourceTitle "playchess.com"]
[Source "ChessBase"]
[SourceQuality "1"]
[TimeControl "5400+30"]

1. d4 Nf6 2. c4 g6 3. Nc3 Bg7 4. e4 d6 5. f3 O-O 6. Be3 Nbd7 7. Qd2 c5 8. Nge2 a6 9. Nc1 b6 10. Be2 cxd4 11. Bxd4 Nc5 12. O-O Bb7 13. Be3 Rc8 14. Nd3 Nfd7 {[%emt 0:35:00]} 15. Rac1 {[%emt 1:16:30]} Ne5 {[%emt 0:13:30]} 16. Nxe5 {[%emt 0:02:35]} Bxe5 {[%emt 0:00:00]} 17. Rfd1 {[%emt 0:03:49]} Qc7 {[%emt 0:16:00]} 18. b4 {[%emt 0:14:05]} Nd7 {[%emt 0:02:30]} 19. a4 {[%emt 0:00:03]} Qb8 {[%emt 0:03:30]} 20. Nd5 {[%emt 0:00:27]} Rfe8 {[%emt 0:02:30]} 21. a5 {[%emt 0:00:56]} bxa5 {[%emt 0:02:30]} 22. bxa5 {[%emt 0:00:20]} Bxd5 {[%emt 0:00:30]} 23. cxd5 {[%emt 0:00:08]} Qa8 {[%emt 0:09:46]} 24. Bf1 {[%emt 0:00:28]} Nc5 {[%emt 0:02:34]} 25. Bxc5 {[%emt 0:01:13]} Rxc5 {[%emt 0:02:03]} 26. f4 {[%emt 0:00:25]} Qa7 {[%emt 0:01:03]} 27. Kh1 {[%emt 0:00:54]} Bf6 {[%emt 0:00:16]} 28. Rxc5 {[%emt 0:00:49]} Qxc5 {[%emt 0:00:30]} 29. Qe2 {[%emt 0:00:51]} Qxa5 {[%emt 0:04:49]} 30. e5 {[%emt 0:00:01]} dxe5 {[%emt 0:00:12]} 1/2-1/2